Cogmind - Beta 17.1 @@@ ROGUE MODE // 2026.09.06 @ 02:10:48 Player: 4R-ZE3 Result: Destroyed by CA-754(R) with Subdweller Beam Cannon Performance ------------- Evolutions (0) 0 Regions Visited (2) 400 Robots Destroyed (22) 110 Value Destroyed (515) 515 Prototype IDs (0) 0 Alien Tech Used (0) 0 Bonus (0) 0 TOTAL SCORE: 1025 Bonus ------- None Cogmind --------- Core Integrity 0/250 Matter 255/300 Energy 219/250 System Corruption 4% Temperature Cool (10) Movement Treading (480) Ox4 Location -10/Subcaves Parts ------- > --- POWER (1) -------- Ion Engine > --- PROPULSION (2) --- Light Treads Wheel > --- UTILITY (2) ------ Heat Sink Huge Storage Unit > --- WEAPON (2) ------- Beam Cannon Subdweller Beam Cannon > --- INVENTORY (25) --- Light Ion Engine Wheel High-capacity Matter Pod (129) Structural Scanner Subdweller Optics Utility Shielding EM Pulse Gun EM Pulse Gun EM Pulse Gun Beam Cannon Beam Cannon Peak State ------------ > --- POWER ------------ Ion Engine > --- PROPULSION ------- Wheel Wheel > --- UTILITY ---------- Heat Sink Huge Storage Unit > --- WEAPON ----------- Beam Cannon Subdweller Beam Cannon > --- INVENTORY -------- Light Ion Engine Light Treads Wheel High-capacity Matter Pod Structural Scanner Subdweller Optics Utility Shielding EM Pulse Gun EM Pulse Gun EM Pulse Gun Beam Cannon Beam Cannon Beam Cannon [Rating: 9] Favorites ----------- Power Ion Engine Engine Ion Engine Propulsion Wheel Treads Light Treads Wheel Wheel Utility Huge Storage Unit Device Heat Sink Storage Huge Storage Unit Protection Utility Shielding Weapon EM Pulse Gun Energy Gun EM Pulse Gun Energy Cannon Beam Cannon Build | -11 -10 -10 ------- Run | Yrd Mat Sub Slots Evolved . | . . . Power . | . . . Propulsion . | . . . Utility . | . . . Weapon . | . . . Parts Attached 22 | 7 11 4 Power 2 | 1 . 1 Engine 2 | 1 . 1 Core . | . . . Reactor . | . . . Propulsion 4 | 2 2 . Treads 2 | 2 . . Leg . | . . . Wheel 2 | . 2 . Hover . | . . . Flight . | . . . Utility 6 | 1 4 1 Device 2 | . 1 1 Storage 3 | 1 2 . Processor . | . . . Hackware . | . . . Protection 1 | . 1 . Artifact . | . . . Weapon 10 | 3 5 2 Energy Gun 6 | 3 3 . Energy Cannon 4 | . 2 2 Ballistic Gun . | . . . Ballistic Cannon . | . . . Launcher . | . . . Special Weapon . | . . . Impact Weapon . | . . . Slashing Weapon . | . . . Piercing Weapon . | . . . Special Melee Weapon . | . . . Unidentified Prototypes . | . . . Parts Lost 7 | . 4 3 Power 1 | . . 1 Propulsion 2 | . 1 1 Utility . | . . . Weapon 4 | . 3 1 Highest Loss Streak 2 | . 2 2 To Critical Strikes . | . . . Average Backups 9 | 1 9 11 Power 1 | . 1 1 Propulsion 1 | . 1 1 Utility 1 | . 1 3 Weapon 5 | . 6 5 Tool/Special . | . . . Unused Backups 6 | . . 6 Power 1 | . . 1 Propulsion 1 | . . 1 Utility 1 | . . 1 Weapon 3 | . . 3 Tool/Special . | . . . Average Slot Usage (%) 92 | . 89 100 Engine 14 | . 14 14 Treads 10 | . 13 1 Wheel 16 | . 12 26 Device 7 | . 4 14 Storage 14 | . 14 14 Protection 1 | . 2 . Energy Gun 18 | . 25 . Energy Cannon 8 | . 1 28 Peak Build Rating 9 | 6 8 9 Average Rating 7 | 4 7 8 On Entrance 4 | . 6 8 Avg Prop Armor Cover (%) 11 | . 11 . Naked Turns . | . . . Heaviest Build 97 | 14 92 97 Greatest Support 40 | 40 40 20 Greatest Overweight (x) 9 | . 9 9 Average Overweight (x) 5 | . 6 4 Largest Inventory Capacity 25 | 8 25 25 Average Capacity 22 | 6 23 25 Most Carried 13 | 3 12 13 Average Carried 9 | 1 9 11 Final Capacity 25 | 8 25 25 Final Carried 12 | 3 12 11 Class Distribution -------------------- 100% | Mutant Dominant Class ---------------- Mutant | -10/Materials Mutant | -10/Subcaves Resources | -11 -10 -10 ----------- Run | Yrd Mat Sub Matter Collected 587 | 131 356 100 Remotely . | . . . Salvage Created 752 | . 605 147 Parts 46 | . 40 6 Haulers Intercepted 1 | . 1 . Recyclers Shooed 1 | . 1 . Parts Field Recycled . | . . . Retrieved Matter . | . . . Parts Self-Destructed 6 | . . 6 Prevented . | . . . Parts Restored . | . . . Kills | -11 -10 -10 ------- Run | Yrd Mat Sub Combat Hostiles Destroyed 17 | . 14 3 Guns 8 | . 8 . Cannons 3 | . . 3 AOE 6 | . 6 . Classes Destroyed 8 | . 7 1 Worker 1 | . 1 . Builder 1 | . 1 . Hauler 1 | . 1 . Recycler 1 | . 1 . Watcher 1 | . 1 . Swarmer 6 | . 6 . Grunt 8 | . 8 . Subdweller 3 | . . 3 Best Kill Streak 5 | . 5 1 Combat Bots Only 4 | . 4 1 Max Kills in Single Turn 3 | . 3 1 Gunslinging . | . . . Exploded 2 | . 2 . Melee . | . . . Uniques/NPCs Destroyed . | . . . Combat | -11 -10 -10 -------- Run | Yrd Mat Sub Hostile Shots Fired 75 | . 56 19 Missed 20 | . 16 4 Hits 55 | . 40 15 Projectile 55 | . 40 15 Damage Taken 1055 | . 592 463 Core 263 | . 114 149 Absorbed by Shields . | . . . Core Remaining (%) 100 | 100 . . Volleys Fired 61 | . 44 17 Largest 2 | . 2 2 Hottest 140 | . 120 140 Shots Fired 118 | . 86 32 Gun 80 | . 80 . Cannon 38 | . 6 32 Launcher . | . . . Special . | . . . Kinetic . | . . . Thermal 38 | . 6 32 Explosive . | . . . Electromagnetic 80 | . 80 . Robot Hit Streak 11 | . 11 9 Robot Miss Streak 5 | . 5 1 Penetration Max . | . . . Secondary Targets 1 | . 1 . Max Gunslinging Chain 1 | . 1 . Shots Hit Robots 82 | . 56 26 Core Hits 35 | . 29 6 Critical Kills . | . . . Critical Parts Destroyed . | . . . Critical Strikes 3 | . 3 . Corrupt 3 | . 3 . Melee Attacks . | . . . Impact . | . . . Slashing . | . . . Piercing . | . . . Sneak Attacks . | . . . Combat Hostiles . | . . . Follow-up Attacks . | . . . Damage Inflicted 1622 | . 1194 428 Guns 747 | . 747 . Cannons 481 | . 53 428 Explosions 389 | . 389 . Melee . | . . . Ramming 5 | . 5 . Kinetic . | . . . Thermal 870 | . 442 428 Explosive . | . . . Electromagnetic 747 | . 747 . Impact . | . . . Slashing . | . . . Piercing . | . . . Highest Corruption 4 | . 4 4 Average Corruption 3 | . 3 4 Corruption Purged . | . . . Corruption Blocked . | . . . Effects 15 | . 4 11 Message Errors 4 | . 1 3 Matter Fused 4 | . 1 3 Heat Flow Errors 5 | . 1 4 Energy Discharges 2 | . 1 1 Overload Shots . | . . . Overflow Damage 57 | . 57 . Projectiles . | . . . Explosions 57 | . 57 . Melee . | . . . Knockbacks . | . . . Impact . | . . . Kinetic . | . . . Secondary . | . . . Self-Inflicted Damage 145 | . 145 . Shots 5 | . 5 . Rammed 1 | . 1 . Targets Rammed 1 | . 1 . Kicked . | . . . Crushed . | . . . Highest Temperature 244 | . 189 244 Average Temperature 66 | . 55 105 Received Heat Transfer 291 | . 204 87 Siege Activations . | . . . Martial Activations . | . . . Shielding Activations . | . . . Robots Disrupted . | . . . Combat Hostiles . | . . . Robots Corrupted . | . . . Combat Hostiles . | . . . Parts Fried 4 | . 4 . Impact Corruptions . | . . . Robots Melted . | . . . Combat Hostiles . | . . . Parts Melted 1 | . . 1 Heat Transferred 1462 | . 611 851 Parts Sabotaged . | . . . Parts Stolen . | . . . Parts Stripped . | . . . Power Chain Reactions 7 | . 7 . Alert | -11 -10 -10 ------- Run | Yrd Mat Sub Maximum Alert Level . | . . . Low Security (%) 100 | 100 100 . Level 1 . | . . . Level 2 . | . . . Level 3 . | . . . Level 4 . | . . . Level 5 . | . . . High Security . | . . . Max Security . | . . . Peak Influence 171 | . 171 . Initial . | . . . Average 49 | . 52 . Influence Increases 496 | . 496 . Destroy 0b10 Robot/C 280 | . 280 . Destroy 0b10 Robot/NC 25 | . 25 . Destroy Leader 64 | . 64 . Successful Hack 5 | . 5 . Select Force Hacks 60 | . 60 . Disable Machine 30 | . 30 . Destroy Structure 32 | . 32 . Influence Decreases 496 | . 341 155 Entered New Map 75 | . . 75 Time Decay 371 | . 301 70 Lost Part 50 | . 40 10 Squads Dispatched 3 | . 3 . Investigation 3 | . 3 . Extermination . | . . . Reinforcement . | . . . Assault . | . . . Garrison . | . . . Intercept . | . . . Searches Triggered . | . . . Construction Impeded . | . . . Haulers Reinforced . | . . . Active Scanning Responses . | . . . Cargo Convoy Interrupts . | . . . Stealth | -11 -10 -10 --------- Run | Yrd Mat Sub Distress Signals 1 | . 1 . Communications Jammed . | . . . Distress Signals . | . . . Times Spotted 29 | . 24 5 Peak Tracking Total 5 | . 5 2 Tactical Retreats . | . . . Traps | -11 -10 -10 ------- Run | Yrd Mat Sub Traps Triggered 4 | . 2 2 Indirectly . | . . . Trap Hack Attempts . | . . . Triggered . | . . . Disarmed . | . . . Reprogrammed . | . . . Reused . | . . . Traps Extracted . | . . . Installed . | . . . Triggered . | . . . Machines | -11 -10 -10 ---------- Run | Yrd Mat Sub Machines Disabled 2 | . 2 . Max in Single Turn 1 | . 1 . Machines Repaired . | . . . Machines Dismantled . | . . . Machines Sabotaged . | . . . Overloaded Fab Kills . | . . . Hacking | -11 -10 -10 --------- Run | Yrd Mat Sub Machines Accessed 6 | . 5 1 Terminals 3 | . 3 . Fabricators . | . . . Repair Stations . | . . . Recycling Units 2 | . 2 . Scanalyzers . | . . . Garrison Access . | . . . Total Hacks 17 | . 13 4 Successful 9 | . 5 4 Failed 8 | . 8 . Catastrophic 1 | . 1 . Database Lockouts . | . . . Manual 11 | . 11 . Terminals 11 | . 11 . Fabricators . | . . . Repair Stations . | . . . Recycling Units 2 | . 2 . Scanalyzers . | . . . Garrison Access . | . . . Terminal Hacks 6 | . 2 4 Record 4 | . . 4 Robot Analysis 1 | . 1 . Recycling Unit Index 1 | . 1 . Fabricator Hacks . | . . . Repair Station Hacks . | . . . Recycling Unit Hacks . | . . . Scanalyzer . | . . . Garrison Access Hacks . | . . . Unauthorized Hacks 3 | . 3 . Terminals 1 | . 1 . Botnet 1 | . 1 . Fabricators . | . . . Repair Stations . | . . . Recycling Units 2 | . 2 . Tunnel 2 | . 2 . Scanalyzers . | . . . Garrison Access . | . . . Data Cores Recovered . | . . . Used . | . . . Hacking Detections 3 | . 3 . Full Trace Events 1 | . 1 . Feedback Events . | . . . Feedback Blocked . | . . . Robot Schematics Acquired . | . . . Robots Built . | . . . Authchips . | . . . Time . | . . . Total Robot Build Rating . | . . . Part Schematics Acquired . | . . . Parts Built . | . . . Authchips . | . . . Time . | . . . Total Part Build Rating . | . . . Part Studies Acquired . | . . . Parts Repaired . | . . . Time . | . . . Parts Recycled . | . . . Recycled Matter . | . . . Retrieved Matter . | . . . Retrieved Components . | . . . Parts Scanalyzed . | . . . Part Schematics Acquired . | . . . Parts Damaged . | . . . Bothacking | -11 -10 -10 ------------ Run | Yrd Mat Sub Used RIF Installer . | . . . Robots Hacked . | . . . Non-combat . | . . . Combat . | . . . Robot Hacks Applied . | . . . Relay Couplers Released . | . . . Fabnet Peak Effective % . | . . . Robots Rewired . | . . . Allies Hacked . | . . . Hacks Repelled . | . . . Allies | -11 -10 -10 -------- Run | Yrd Mat Sub Total Allies . | . . . Largest Group . | . . . Highest-Rated Group . | . . . Highest-Rated Ally . | . . . Total Orders . | . . . Ally Attacks . | . . . Total Damage . | . . . Kills . | . . . Allies Corrupted . | . . . Allies Melted . | . . . Intel | -11 -10 -10 ------- Run | Yrd Mat Sub Active Infowar (turns) 201 | . . 201 Structural 201 | . . 201 Robot Analysis Total 1 | . 1 . Derelict Logs Recovered 1 | . . 1 Drone Launches . | . . . Drone Recoveries . | . . . Exploration | -11 -10 -10 ------------- Run | Yrd Mat Sub Turns Passed 1509 | 72 1036 401 Spaces Moved 686 | 40 427 219 Core 4 | 4 . . Treads 100 | 36 64 . Legs . | . . . Wheels 582 | . 363 219 Hover . | . . . Flight . | . . . Fastest Speed 50 | 50 140 140 Average Speed 174 | 149 193 140 Slowest Speed 320 | 160 320 215 Overloaded Moves . | . . . Propulsion Burnouts . | . . . Robots Hopped . | . . . Potential Cave-ins . | . . . Cave-ins Triggered . | . . . Exploration Rate (%) 33 | 3 76 21 Regions Visited 2 Branch Regions 1 Pre-discovered Areas 2 | . 2 . Known Exits Taken . | . . . Unknown Exits Taken 2 | 1 1 . Scrap Searched . | . . . Spaces Dug 1 | . . 1 Terrain Destroyed 30 | . 29 1 Melee . | . . . Projectile 1 | . . 1 AOE 29 | . 29 . Terrain Rammed . | . . . Walls Destroyed . | . . . Machines Disabled . | . . . Actions | -11 -10 -10 --------- Run | Yrd Mat Sub Total 869 | 49 547 273 Wait 68 | . 44 24 Move 684 | 39 426 219 Hop . | . . . Pick Up 19 | 3 15 1 Fast Attach 9 | 6 3 . Attach 8 | . 5 3 Detach 1 | . 1 . Swap 14 | 1 4 9 Drop 4 | . 4 . Fire 61 | . 44 17 Melee . | . . . Ram . | . . . Kick . | . . . Crush 1 | . 1 . Escape Stasis . | . . . Rewire . | . . . Trap . | . . . Miscellaneous . | . . . Route ------- -11/Scrapyard -10/Materials (discovered 5 exits: [*Mat x2] / [*Min x2] / *Sub) -10/Subcaves History --------- Turn | Location | Event 8 | -11/Scrapyard | Discovered new exit (range 14) 73 | -11/Scrapyard | Entered Materials 251 | -10/Materials | Discovered new exit (range 16) 333 | -10/Materials | Build established: Mutant 477 | -10/Materials | Discovered new exit (range 8) 802 | -10/Materials | Discovered new exit (range 13) 921 | -10/Materials | Discovered new exit (range 10) 1104 | -10/Materials | Discovered new exit (range 5) 1109 | -10/Materials | Entered Subcaves 1114 | -10/Subcaves | Learned Materials trap positions 1126 | -10/Subcaves | Core integrity fell below 50% 1353 | -10/Subcaves | Core integrity fell below 20% 1357 | -10/Subcaves | Shifting Twisted Machinery released Sub. Beam Cannon 1417 | -10/Subcaves | Visited Clippyterm 1421 | -10/Subcaves | Learned Factory trap positions 1421 | -10/Subcaves | Learned Factory emergency access door positions 1499 | -10/Subcaves | Disturbed a concealed Subdweller 1510 | -10/Subcaves | Destroyed by CA-754(R) with Subdweller Beam Cannon Last Messages --------------- Data stored: Factory trap records. >>Record "Hide-and-Seek" It looks like you're trying to avoid detection, would you like help? Data stored: Factory emergency access points. >>Record "LRC-V1" It looks like you're REDACTED, I can suggest REDACTED and REDACTED. Also definitely avoid REDACTED. 01449_ System corrupted: Heat flow error (+225). 01467_ ,HATWJ, IJ&DB6MP6ROK45O<>I 01485_ Triggered Piercing Trap. 01485_ Spikes shoot up from the floor. 01485_ Critical hit (Impale). 01485_ Wheel destroyed. 01493_ System corrupted: Heat flow error (+118). 01499_ CA-754(R) angrily emerges from the Twisted Machinery. 01503_ YL-FZC(R) destroyed. 01506_ Beam Cannon destroyed. Map ----- +----------------------------------------------------+ | ????????????????????????????????????? | | ????????????????????????????????????? | | ????????????????????????????????????? | | ????????????????????????????????????? | | ????????????????????????????????????? | | ????????????????????????????????????? | | ????????????????????????????????????? | | ????????????????????????????????????? | | ????????????????????????????????????? | | ????????????????????????????????????? | | ????????????????????????????????????? | | ????????????????????????????????????? | | ????????????????????????????????????? | | ????????????????????????????????????? | | ????????????????????????????????????? | | ???????????????#####????????????????? | | ??????????????#######???????????????? | | ??????????????### ####??????????????? | | ??????????????## ###??????????????? | | ??????########## ##??????????????? | | ????############ ##???????######## | | ???##### <<<<#### ##??????########## | | ???###< < ### ###??####### # | | ???##" =/ <## ########## | | ??### " /%!###" ###### | | ??##" #@#"" ### | | ??## $$$ # ####### | | ??## $#$ # ########## | | ??##" $$ # #< ## #####???### | | ??##" ? ? ## ## ######??????## | | ??##"? ? <# ####????????? | | ??### ??? ## ##???????? | | ??###" ??" R&## ##???????? | | ???### "? <## ##???????? | | ???##### "" #### ###???????? | | ????############# #####???????? | | ???????######?#### #####???????? | | ???????????????#### ###?????????? | | ????????????????### #???????????? | | ?????????????????# ????????????? | | ?????????????????? ????????????? | | ?????????????????? ### ???????????? | | ?????????????????? ######???????????? | | ?????????????????????####???????????? | | ????????????????????????????????????? | | ????????????????????????????????????? | | ????????????????????????????????????? | | ????????????????????????????????????? | | ????????????????????????????????????? | | ????????????????????????????????????? | +----------------------------------------------------+ Best States ------------- Heat Dissipation 35 Energy Generation 10 Energy Capacity 250 Matter Stores 300 Matter Capacity 500 Sight Range 16 Terrain Scan Density 10 Utility Shielding 33 Evasion (%) 40 Recoil Reduction 2 Item Schematics ----------------- None Robot Schematics ------------------ None Fabricated ------------ Nothing Repaired ---------- Nothing Studied --------- None Alien Tech Used ----------------- None Achievements -------------- None Challenges ------------ None Game ------ Seed CloakingTitaniumDirector Manual? 0 Play Time 00:10:58 Cumulative 338.2 hours Start 2026.09.06 @ 02:02:13 End 2026.09.06 @ 02:10:48 Sessions 1 Manual Loads 0 Difficulty Rogue Special Mode None Game No. 313 Rogue 259 Adventurer 54 Explorer 0 Win Type - Total 16 Types 11/1/1/1/0/0/0/1/0/1 Lore% 80 Gallery% 69 Achievement% 64 Wizard Run 0 Options --------- Layout 1 ASCII 0 Keyboard 0 Movement Mouse Keybinds 1 Fullscreen 2 Font 32/Tamsyn Map View 50x35 Zoom Use 0% Tactical HUD 1 Map Filters NONE Filters NONE Steam 1 RUN: f0c469ac-f4a6-47d5-bca4-8f1b900dd031